fUSD/lending_fUSD_20260518
["ID","MTS","AMOUNT","RATE_DAILY","PERIOD"]
[422573332,1779111032000,-150.0,0.00014149,2]
[422573335,1779111032000,-300.0,0.00014169,2]
[422573342,1779111032000,-150.0,0.00014237,2]
[422573341,1779111032000,-150.0,0.00014237,2]
[422573345,1779111032000,-166.66,0.00014247,2]
[422573365,1779111032000,-150.0,0.0001459,2]
[422573348,1779111032000,-500.0,0.00014335,2]
[422573346,1779111032000,-150.0,0.00014281,2]
[422573347,1779111032000,-150.0,0.00014325,2]
[422573350,1779111032000,-150.0,0.00014369,2]
[422573349,1779111032000,-150.0,0.00014344,2]
[422573353,1779111032000,-400.0,0.000144,5]
[422573364,1779111032000,-250.0,0.00014584,2]
[422573363,1779111032000,-407.24,0.00014559,2]
[422573354,1779111032000,-161.86,0.00014407,2]
[422573334,1779111032000,-300.0,0.00014169,2]
[422573357,1779111032000,-150.0,0.00014487,2]
[422573359,1779111032000,-800.0,0.000145,5]
[422573352,1779111032000,-150.0,0.00014387,2]
[422573336,1779111032000,-300.0,0.00014169,2]
[422573316,1779111032000,-150.0,0.00013916,2]
[422573330,1779111032000,-166.66,0.0001411,2]
[422573314,1779111032000,-150.0,0.00013884,2]
[422573309,1779111032000,-180.89,0.00013821,2]
[422573307,1779111032000,-150.0,0.00013787,2]
[422573308,1779111032000,-150.0,0.00013796,2]
[422573306,1779111032000,-150.0,0.00013787,2]
[422573313,1779111032000,-185.0,0.00013849,2]
[422573312,1779111032000,-200.0,0.00013845,2]
[422573311,1779111032000,-150.0,0.0001384,2]
[422573310,1779111032000,-166.66,0.00013836,2]
[422573315,1779111032000,-407.24,0.00013897,2]
[422573323,1779111032000,-5000.0,0.0001399,2]
[422573318,1779111032000,-150.0,0.00013973,2]
[422573322,1779111032000,-10920.53524957,0.0001399,2]
[422573326,1779111032000,-500.0,0.00014061,2]
[422573320,1779111032000,-150.0,0.00013987,2]
[422573325,1779111032000,-150.0,0.00014017,2]
[422573355,1779111032000,-150.0,0.00014413,2]
[422573317,1779111032000,-150.0,0.00013928,2]
[422573324,1779111032000,-250.0,0.00014,2]
[422573319,1779111032000,-166.66,0.00013973,2]
[422573321,1779111032000,-150.0,0.00013987,2]
[422573328,1779111032000,-150.0,0.00014087,2]
[422573339,1779111032000,-407.24,0.00014228,2]
[422573329,1779111032000,-150.0,0.00014105,2]
[422573338,1779111032000,-150.0,0.00014193,2]
[422573331,1779111032000,-150.0,0.0001413,2]
[422573356,1779111032000,-150.0,0.00014457,2]
[422573327,1779111032000,-150.0,0.00014061,2]
[422573362,1779111032000,-150.0,0.00014558,2]
[422573391,1779111032000,-5169.93386635,0.00014794,2]
[422573392,1779111032000,-2100.0,0.000148,5]
[422573401,1779111032000,-500.0,0.00014803,2]
[422573398,1779111032000,-500.0,0.00014803,2]
[422573396,1779111032000,-500.0,0.00014803,2]
[422573400,1779111032000,-500.0,0.00014803,2]
[422573394,1779111032000,-500.0,0.00014803,2]
[422573395,1779111032000,-500.0,0.00014803,2]
[422573399,1779111032000,-500.0,0.00014803,2]
[422573393,1779111032000,-500.0,0.00014803,2]
[422573397,1779111032000,-500.0,0.00014803,2]
[422573404,1779111032000,-500.0,0.00014803,2]
[422573406,1779111032000,-475.1641071,0.00014803,2]
[422573416,1779111032000,-9931.09189801,0.00014804,2]
[422573405,1779111032000,-500.0,0.00014803,2]
[422573409,1779111032000,-500.0,0.00014803,2]
[422573408,1779111032000,-18.65595836,0.00014803,2]
[422573410,1779111032000,-500.0,0.00014803,2]
[422573415,1779111032000,-282.02801526,0.00014803,2]
[422573411,1779111032000,-500.0,0.00014803,2]
[422573407,1779111032000,-481.71313296,0.00014803,2]
[422573412,1779111032000,-500.0,0.00014803,2]
[422573414,1779111032000,-500.0,0.00014803,2]
[422573417,1779111032000,-44121.54442133,0.00014804,2]
[422573360,1779111032000,-150.0,0.00014501,2]
[422573403,1779111032000,-500.0,0.00014803,2]
[422573402,1779111032000,-500.0,0.00014803,2]
[422573413,1779111032000,-500.0,0.00014803,2]
[422573390,1779111032000,-17378.6086839,0.00014794,2]
[422573361,1779111032000,-150.0,0.00014546,2]
[422573389,1779111032000,-5169.93386635,0.00014773,2]
[422573358,1779111032000,-150.0,0.00014487,2]
[422573368,1779111032000,-150.0,0.00014634,2]
[422573371,1779111032000,-150.0,0.00014687,2]
[422573366,1779111032000,-1200.0,0.000146,5]
[422573372,1779111032000,-1600.0,0.000147,5]
[422573370,1779111032000,-164.23,0.00014686,2]
[422573373,1779111032000,-1571.4325,0.00014704,2]
[422573376,1779111032000,-2597.00805779,0.0001471,2]
[422573374,1779111032000,-17378.60868393,0.0001471,2]
[422573375,1779111032000,-154.13188387,0.0001471,2]
[422573367,1779111032000,-500.0,0.00014608,2]
[422573377,1779111032000,-5169.93386636,0.0001471,2]
[422573384,1779111032000,-17378.6086839,0.00014752,2]
[422573386,1779111032000,-150.0,0.00014766,2]
[422573379,1779111032000,-1680.0,0.00014728,2]
[422573383,1779111032000,-150.0,0.00014737,2]
[422573387,1779111032000,-150.0,0.00014772,2]
[422573388,1779111032000,-17378.6086839,0.00014773,2]
[422573382,1779111032000,-150.0,0.00014737,2]
[422573381,1779111032000,-5169.93386635,0.00014731,2]
[422573380,1779111032000,-17378.6086839,0.00014731,2]
[422573378,1779111032000,-150.0,0.00014722,2]
[422573385,1779111032000,-5169.93386635,0.00014752,2]
[422573369,1779111032000,-150.0,0.00014678,2]
[422573423,1779111037000,-818.21216248,0.00014804,2]
[422573421,1779111037000,-25548.38353755,0.00014804,2]
[422573422,1779111037000,-1939.06989098,0.00014804,2]
[422573420,1779111037000,-788.52539769,0.00014804,2]
[422573475,1779111040000,-6478.86472451,0.00014804,2]
[422573476,1779111040000,-400.765,0.00014804,2]
[422573478,1779111040000,-631.26095624,0.00014804,2]
[422573477,1779111040000,-1503.32207999,0.00014804,2]
[422573510,1779111043000,-444.78112292,0.000149,2]
[422573509,1779111043000,-17378.6086839,0.000149,2]
[422573524,1779111043000,-159.0,0.00014991,2]
[422573513,1779111043000,-150.0,0.00014942,2]
[422573512,1779111043000,-2000.0,0.00014919,2]
[422573514,1779111043000,-213.37737141,0.00014959,2]
[422573516,1779111043000,-150.0,0.00014986,2]
[422573507,1779111043000,-445.49931476,0.000149,2]
[422573517,1779111043000,-151.89021174,0.00014986,2]
[422573519,1779111043000,-150.0,0.00014986,2]
[422573515,1779111043000,-2097.50320399,0.00014983,2]
[422573522,1779111043000,-154.55661821,0.00014986,2]
[422573520,1779111043000,-150.0,0.00014986,2]
[422573523,1779111043000,-49079.46475043,0.0001499,2]
[422573508,1779111043000,-400.0,0.000149,5]
[422573491,1779111043000,-173653.67193122,0.00014804,2]
[422573503,1779111043000,-500.0,0.00014899,2]
[422573492,1779111043000,-150.0,0.0001481,2]
[422573521,1779111043000,-150.0,0.00014986,2]
[422573494,1779111043000,-5169.93386635,0.00014816,2]
[422573495,1779111043000,-17378.6086839,0.00014837,2]
[422573493,1779111043000,-17378.6086839,0.00014816,2]
[422573497,1779111043000,-150.0,0.00014854,2]
[422573496,1779111043000,-5169.93386635,0.00014837,2]
[422573499,1779111043000,-5169.93386635,0.00014858,2]
[422573498,1779111043000,-17378.6086839,0.00014858,2]
[422573501,1779111043000,-150.0,0.00014898,2]
[422573511,1779111043000,-5131.42597986,0.000149,2]
[422573500,1779111043000,-17378.6086839,0.00014879,2]
[422573505,1779111043000,-414.13661985,0.00014899,2]
[422573502,1779111043000,-500.0,0.00014899,2]
[422573504,1779111043000,-469.62949027,0.00014899,2]
[422573506,1779111043000,-812.30818369,0.000149,2]
[422573518,1779111043000,-150.0,0.00014986,2]
[422573527,1779111043000,-500.0,0.00014998,2]
[422573536,1779111043000,-9727.148618,0.00014999,2]
[422573550,1779111043000,-500.0,0.00014999,2]
[422573549,1779111043000,-500.0,0.00014999,2]
[422573551,1779111043000,-500.0,0.00014999,2]
[422573548,1779111043000,-475.35162455,0.00014999,2]
[422573545,1779111043000,-500.0,0.00014999,2]
[422573553,1779111043000,-500.0,0.00014999,2]
[422573539,1779111043000,-1686.5910491,0.00014999,2]
[422573526,1779111043000,-151.0,0.00014997,2]
[422573556,1779111043000,-398.2405027,0.00014999,2]
[422573555,1779111043000,-500.0,0.00014999,2]
[422573557,1779111043000,-300.0,0.00014999,2]
[422573560,1779111043000,-429658.50095141,0.00015,2]
[422573558,1779111043000,-666.0,0.00014999,2]
[422573559,1779111043000,-300.0,0.00014999,2]
[422573554,1779111043000,-500.0,0.00014999,2]
[422573543,1779111043000,-500.0,0.00014999,2]
[422573552,1779111043000,-500.0,0.00014999,2]
[422573542,1779111043000,-500.0,0.00014999,2]
[422573544,1779111043000,-509.4193249,0.00014999,2]
[422573537,1779111043000,-1511.7929031,0.00014999,2]
[422573528,1779111043000,-500.0,0.00014998,2]
[422573525,1779111043000,-185.0,0.00014991,2]
[422573531,1779111043000,-500.0,0.00014998,2]
[422573533,1779111043000,-529.46048419,0.00014998,2]
[422573534,1779111043000,-500.0,0.00014998,2]
[422573547,1779111043000,-502.12015589,0.00014999,2]
[422573529,1779111043000,-500.0,0.00014998,2]
[422573530,1779111043000,-500.0,0.00014998,2]
[422573535,1779111043000,-500.0,0.00014998,2]
[422573538,1779111043000,-65990.8669376,0.00014999,2]
[422573540,1779111043000,-500.0,0.00014999,2]
[422573541,1779111043000,-213.60264062,0.00014999,2]
[422573532,1779111043000,-500.0,0.00014998,2]
[422573546,1779111043000,-592.87696527,0.00014999,2]
[422573561,1779111045000,-509.14400525,0.00014879,2]
[422573565,1779111046000,-8642.88044382,0.00015,2]
[422573563,1779111046000,-460.205791,0.00014879,2]
[422573564,1779111046000,-3106.44571196,0.00014879,2]
[422573562,1779111046000,-1094.13835814,0.00014879,2]
[422573641,1779111141000,443.384021,0.00025178,120]
[422573642,1779111144000,2276.976176,0.00025178,120]
[422573643,1779111279000,348.108116,0.000245,120]
[422573644,1779111321000,153.90305867,0.00029,120]
[422573645,1779111362000,423.456004,0.000245,120]
[422573646,1779111429000,389.438656,0.00024038,120]
[422573647,1779111458000,189.44835678,0.000295,120]
[422573648,1779111565000,150.0,0.0003,120]
[422573649,1779111604000,244.034879,0.00023095,120]
[422573651,1779111612000,172.95,7.022e-05,2]
[422573652,1779111690000,194.719328,0.00023087,120]
[422573653,1779112140000,1000.0,0.00030134,120]
[422573678,1779112231000,-150.0,0.00013737,2]
[422573677,1779112231000,-163.42,0.00013737,2]
[422573655,1779112231000,-152.0,0.00011652,2]
[422573657,1779112231000,-272.12352312,0.00013366,2]
[422573659,1779112231000,-270.81,0.00013383,2]
[422573656,1779112231000,-202.00232647,0.00013366,2]
[422573661,1779112231000,-300.0,0.00013487,2]
[422573671,1779112231000,-150.0,0.0001355,2]
[422573663,1779112231000,-150.0,0.00013488,2]
[422573667,1779112231000,-150.0,0.00013488,2]
[422573660,1779112231000,-437.97,0.00013414,2]
[422573664,1779112231000,-150.0,0.00013488,2]
[422573658,1779112231000,-158.17415041,0.00013366,2]
[422573669,1779112231000,-150.0,0.00013488,2]
[422573662,1779112231000,-1200.0,0.00013487,2]
[422573676,1779112231000,-166.66,0.00013699,2]
[422573672,1779112231000,-150.0,0.00013613,2]
[422573674,1779112231000,-215.56,0.00013676,2]
[422573673,1779112231000,-150.0,0.00013675,2]
[422573675,1779112231000,-154.72,0.00013698,2]
[422573665,1779112231000,-150.0,0.00013488,2]
[422573666,1779112231000,-150.0,0.00013488,2]
[422573668,1779112231000,-150.0,0.00013488,2]
[422573670,1779112231000,-150.0,0.00013488,2]
[422573749,1779112232000,-150.0,0.00014487,2]
[422573763,1779112232000,-150.0,0.00014612,2]
[422573761,1779112232000,-166.66,0.00014577,2]
[422573759,1779112232000,-150.0,0.00014549,2]
[422573775,1779112232000,-5333.70693242,0.00014756,2]
[422573739,1779112232000,-150.0,0.00014299,2]
[422573741,1779112232000,-150.0,0.00014362,2]
[422573747,1779112232000,-150.0,0.00014424,2]
[422573757,1779112232000,-150.0,0.00014487,2]
[422573745,1779112232000,-166.66,0.00014401,2]
[422573755,1779112232000,-150.0,0.00014487,2]
[422573767,1779112232000,-150.0,0.00014687,2]
[422573743,1779112232000,-150.0,0.00014387,2]
[422573778,1779112232000,-7392.33613052,0.00014776,2]
[422573781,1779112232000,-7392.33613052,0.00014792,2]
[422573774,1779112232000,-150.0,0.00014737,2]
[422573773,1779112232000,-150.0,0.00014737,2]
[422573769,1779112232000,-2000.0,0.00014704,2]
[422573780,1779112232000,-5333.70693235,0.00014788,2]
[422573772,1779112232000,-150.0,0.00014737,2]
[422573771,1779112232000,-150.0,0.00014737,2]
[422573776,1779112232000,-7392.33613054,0.00014761,2]
[422573765,1779112232000,-150.0,0.00014674,2]
[422573779,1779112232000,-420.0,0.00014783,2]
[422573782,1779112232000,-150.0,0.00014799,2]
[422573753,1779112232000,-150.0,0.00014487,2]
[422573783,1779112232000,-500.0,0.00014803,2]
[422573785,1779112232000,-500.0,0.00014803,2]
[422573777,1779112232000,-5333.70693235,0.00014772,2]
[422573751,1779112232000,-150.0,0.00014487,2]
[422573712,1779112232000,-200.0,0.00014046,2]
[422573736,1779112232000,-150.0,0.00014237,2]
[422573683,1779112232000,-177.04,0.00013762,2]
[422573681,1779112232000,-150.0,0.00013737,2]
[422573679,1779112232000,-150.0,0.00013737,2]
[422573682,1779112232000,-200.0,0.00013742,2]
[422573680,1779112232000,-150.0,0.00013737,2]
[422573696,1779112232000,-2000.0,0.00013912,2]
[422573684,1779112232000,-150.0,0.00013787,2]
[422573688,1779112232000,-150.0,0.00013862,2]
[422573690,1779112232000,-166.66,0.00013874,2]
[422573692,1779112232000,-51117.855,0.0001389,2]
[422573686,1779112232000,-150.0,0.000138,2]
[422573694,1779112232000,-225.49,0.00013893,2]
[422573702,1779112232000,-150.0,0.00013987,2]
[422573738,1779112232000,-150.0,0.00014237,2]
[422573700,1779112232000,-150.0,0.00013987,2]
[422573704,1779112232000,-150.0,0.00013987,2]
[422573708,1779112232000,-150.0,0.00013987,2]
[422573714,1779112232000,-150.0,0.0001405,2]
[422573789,1779112232000,-500.0,0.00014803,2]
[422573716,1779112232000,-166.66,0.0001405,2]
[422573728,1779112232000,-150.0,0.00014175,2]
[422573721,1779112232000,-150.0,0.00014112,2]
[422573710,1779112232000,-250.0,0.00014,2]
[422573719,1779112232000,-150.0,0.00014087,2]
[422573725,1779112232000,-166.66,0.00014154,2]
[422573734,1779112232000,-150.0,0.00014237,2]
[422573730,1779112232000,-166.66,0.00014226,2]
[422573732,1779112232000,-150.0,0.00014237,2]
[422573698,1779112232000,-150.0,0.00013925,2]
[422573787,1779112232000,-500.0,0.00014803,2]
[422573706,1779112232000,-150.0,0.00013987,2]
[422573784,1779112232000,-500.0,0.00014803,2]
[422573830,1779112232000,-500.0,0.0001486,2]
[422573818,1779112232000,-500.0,0.0001486,2]
[422573822,1779112232000,-500.0,0.0001486,2]
[422573827,1779112232000,-500.0,0.0001486,2]
[422573825,1779112232000,-500.0,0.0001486,2]
[422573821,1779112232000,-500.0,0.0001486,2]
[422573820,1779112232000,-500.0,0.0001486,2]
[422573823,1779112232000,-500.0,0.0001486,2]
[422573826,1779112232000,-500.0,0.0001486,2]
[422573832,1779112232000,-500.0,0.0001486,2]
[422573849,1779112232000,-500.0,0.0001486,2]
[422573835,1779112232000,-500.0,0.0001486,2]
[422573839,1779112232000,-500.0,0.0001486,2]
[422573831,1779112232000,-500.0,0.0001486,2]
[422573837,1779112232000,-500.0,0.0001486,2]
[422573838,1779112232000,-500.0,0.0001486,2]
[422573842,1779112232000,-500.0,0.0001486,2]
[422573836,1779112232000,-500.0,0.0001486,2]
[422573833,1779112232000,-500.0,0.0001486,2]
[422573844,1779112232000,-500.0,0.0001486,2]
[422573840,1779112232000,-500.0,0.0001486,2]
[422573843,1779112232000,-500.0,0.0001486,2]
[422573841,1779112232000,-500.0,0.0001486,2]
[422573846,1779112232000,-500.0,0.0001486,2]
[422573845,1779112232000,-500.0,0.0001486,2]
[422573847,1779112232000,-500.0,0.0001486,2]
[422573848,1779112232000,-500.0,0.0001486,2]
[422573791,1779112232000,-500.0,0.00014803,2]
[422573834,1779112232000,-500.0,0.0001486,2]
[422573828,1779112232000,-500.0,0.0001486,2]
[422573824,1779112232000,-500.0,0.0001486,2]
[422573819,1779112232000,-500.0,0.0001486,2]
[422573790,1779112232000,-500.0,0.00014803,2]
[422573792,1779112232000,-500.0,0.00014803,2]
[422573788,1779112232000,-500.0,0.00014803,2]
[422573786,1779112232000,-500.0,0.00014803,2]
[422573793,1779112232000,-5333.70693235,0.00014804,2]
[422573829,1779112232000,-500.0,0.0001486,2]
[422573796,1779112232000,-7392.33613052,0.00014823,2]
[422573797,1779112232000,-1680.0,0.00014835,2]
[422573802,1779112232000,-500.0,0.00014836,2]
[422573798,1779112232000,-500.0,0.00014836,2]
[422573801,1779112232000,-500.0,0.00014836,2]
[422573799,1779112232000,-403.08694039,0.00014836,2]
[422573805,1779112232000,-500.0,0.00014836,2]
[422573795,1779112232000,-5333.70693235,0.0001482,2]
[422573803,1779112232000,-500.0,0.00014836,2]
[422573794,1779112232000,-7392.33613052,0.00014807,2]
[422573800,1779112232000,-503.47273161,0.00014836,2]
[422573804,1779112232000,-500.0,0.00014836,2]
[422573813,1779112232000,-159.0,0.00014856,2]
[422573812,1779112232000,-3342.47450869,0.00014854,2]
[422573816,1779112232000,-500.0,0.0001486,2]
[422573809,1779112232000,-7392.33613052,0.00014838,2]
[422573811,1779112232000,-4049.86162183,0.00014854,2]
[422573815,1779112232000,-500.0,0.0001486,2]
[422573810,1779112232000,-5333.70693235,0.00014852,2]
[422573808,1779112232000,-5333.70693235,0.00014836,2]
[422573817,1779112232000,-500.0,0.0001486,2]
[422573807,1779112232000,-500.0,0.00014836,2]
[422573806,1779112232000,-500.0,0.00014836,2]
[422573814,1779112232000,-500.0,0.0001486,2]
[422573877,1779112233000,-500.0,0.0001486,2]
[422573863,1779112233000,-500.0,0.0001486,2]
[422573866,1779112233000,-193.81015208,0.0001486,2]
[422573867,1779112233000,-306.18984792,0.0001486,2]
[422573865,1779112233000,-500.0,0.0001486,2]
[422573862,1779112233000,-632.80046642,0.0001486,2]
[422573861,1779112233000,-500.0,0.0001486,2]
[422573864,1779112233000,-500.0,0.0001486,2]
[422573859,1779112233000,-500.0,0.0001486,2]
[422573852,1779112233000,-500.0,0.0001486,2]
[422573858,1779112233000,-500.0,0.0001486,2]
[422573854,1779112233000,-500.0,0.0001486,2]
[422573855,1779112233000,-500.0,0.0001486,2]
[422573853,1779112233000,-500.0,0.0001486,2]
[422573850,1779112233000,-500.0,0.0001486,2]
[422573851,1779112233000,-500.0,0.0001486,2]
[422573857,1779112233000,-500.0,0.0001486,2]
[422573856,1779112233000,-500.0,0.0001486,2]
[422573871,1779112233000,-193.81015208,0.0001486,2]
[422573860,1779112233000,-500.0,0.0001486,2]
[422573874,1779112233000,-500.0,0.0001486,2]
[422573870,1779112233000,-500.0,0.0001486,2]
[422573868,1779112233000,-500.0,0.0001486,2]
[422573893,1779112233000,-900.0,0.00014861,2]
[422573892,1779112233000,-48.66841473,0.00014861,2]
[422573890,1779112233000,-166.70574132,0.0001486,2]
[422573891,1779112233000,-344.98506127,0.0001486,2]
[422573887,1779112233000,-500.0,0.0001486,2]
[422573876,1779112233000,-500.0,0.0001486,2]
[422573884,1779112233000,-500.0,0.0001486,2]
[422573885,1779112233000,-445.93432849,0.0001486,2]
[422573882,1779112233000,-500.0,0.0001486,2]
[422573883,1779112233000,-500.0,0.0001486,2]
[422573888,1779112233000,-194.85969485,0.0001486,2]
[422573880,1779112233000,-500.0,0.0001486,2]
[422573881,1779112233000,-500.0,0.0001486,2]
[422573878,1779112233000,-500.0,0.0001486,2]
[422573889,1779112233000,-305.14030515,0.0001486,2]
[422573879,1779112233000,-292.53338516,0.0001486,2]
[422573872,1779112233000,-306.18984792,0.0001486,2]
[422573869,1779112233000,-500.0,0.0001486,2]
[422573873,1779112233000,-500.0,0.0001486,2]
[422573875,1779112233000,-500.0,0.0001486,2]
[422573886,1779112233000,-54.06567151,0.0001486,2]
[422573896,1779112237000,-500.0,0.0001486,2]
[422573897,1779112237000,-91682.2105747,0.00014861,2]
[422573895,1779112237000,-193.696775,0.000147,2]
[422573900,1779112237000,-11125.88655349,0.00014861,2]
[422573902,1779112237000,-3162.93913856,0.00014861,2]
[422573899,1779112237000,-2245.908,0.00014861,2]
[422573901,1779112237000,-5538.35264244,0.00014861,2]
[422573898,1779112237000,-594.98989194,0.00014861,2]
[422573904,1779112238000,-957.59957051,0.00014861,2]
[422573905,1779112238000,-1022.0392,0.00014861,2]
[422573903,1779112238000,-1190.63049134,0.00014861,2]
[422573951,1779112240000,-150.0,0.00014986,2]
[422573953,1779112240000,-151.0,0.00014997,2]
[422573957,1779112240000,-500.0,0.00014999,2]
[422573954,1779112240000,-500.0,0.00014998,2]
[422573955,1779112240000,-639.89563389,0.00014998,2]
[422573964,1779112240000,-500.0,0.00014999,2]
[422573975,1779112240000,-500.0,0.00014999,2]
[422573968,1779112240000,-500.0,0.00014999,2]
[422573973,1779112240000,-500.0,0.00014999,2]
[422573967,1779112240000,-500.0,0.00014999,2]
[422573970,1779112240000,-500.0,0.00014999,2]
[422573978,1779112240000,-500.0,0.00014999,2]
[422573982,1779112240000,-198.14496198,0.00014999,2]
[422573962,1779112240000,-500.0,0.00014999,2]
[422573969,1779112240000,-500.0,0.00014999,2]
[422573971,1779112240000,-465.15228181,0.00014999,2]
[422573976,1779112240000,-500.0,0.00014999,2]
[422573966,1779112240000,-449.94,0.00014999,2]
[422573981,1779112240000,-500.0,0.00014999,2]
[422573980,1779112240000,-500.0,0.00014999,2]
[422573958,1779112240000,-500.0,0.00014999,2]
[422573965,1779112240000,-186.64364503,0.00014999,2]
[422573977,1779112240000,-500.0,0.00014999,2]
[422573961,1779112240000,-500.0,0.00014999,2]
[422573959,1779112240000,-500.0,0.00014999,2]
[422573960,1779112240000,-500.0,0.00014999,2]
[422573974,1779112240000,-500.0,0.00014999,2]
[422573956,1779112240000,-178.74064319,0.00014998,2]
[422573947,1779112240000,-150.0,0.00014986,2]
[422573934,1779112240000,-7392.33613052,0.00014885,2]
[422573950,1779112240000,-230.71482245,0.00014986,2]
[422573963,1779112240000,-500.0,0.00014999,2]
[422573923,1779112240000,-3750.1635623,0.00014861,2]
[422573929,1779112240000,-1541.7880511,0.00014861,2]
[422573928,1779112240000,-5025.2818968,0.00014861,2]
[422573922,1779112240000,-33148.25079329,0.00014861,2]
[422573930,1779112240000,-150.0,0.00014861,2]
[422573924,1779112240000,-3725.712115,0.00014861,2]
[422573925,1779112240000,-100614.943267,0.00014861,2]
[422573926,1779112240000,-2654.7064422,0.00014861,2]
[422573927,1779112240000,-14148.6375614,0.00014861,2]
[422573931,1779112240000,-5333.70693235,0.00014868,2]
[422573933,1779112240000,-5333.70693235,0.00014884,2]
[422573935,1779112240000,-206.55345518,0.000149,2]
[422573936,1779112240000,-696.26415744,0.000149,2]
[422573932,1779112240000,-7392.33613052,0.00014869,2]
[422573937,1779112240000,-969.03982522,0.000149,2]
[422573943,1779112240000,-167.06305135,0.00014918,2]
[422573941,1779112240000,-5333.70693235,0.000149,2]
[422573942,1779112240000,-424.42170475,0.000149,2]
[422573939,1779112240000,-2222.85022212,0.000149,2]
[422573938,1779112240000,-7392.33613052,0.000149,2]
[422573940,1779112240000,-299.44019908,0.000149,2]
[422573944,1779112240000,-150.0,0.00014924,2]
[422573946,1779112240000,-150.0,0.00014986,2]
[422573949,1779112240000,-150.0,0.00014986,2]
[422573952,1779112240000,-180.44403207,0.0001499,2]
[422573948,1779112240000,-150.0,0.00014986,2]
[422573945,1779112240000,-177.57196693,0.00014925,2]
[422573972,1779112240000,-500.0,0.00014999,2]
[422573979,1779112240000,-500.0,0.00014999,2]
[422573984,1779112240000,-500.0,0.00014999,2]
[422574029,1779112240000,-500.0,0.00014999,2]
[422574034,1779112240000,-500.0,0.00014999,2]
[422574037,1779112240000,-500.0,0.00014999,2]
[422574036,1779112240000,-500.0,0.00014999,2]
[422574042,1779112240000,-500.0,0.00014999,2]
[422574045,1779112240000,-500.0,0.00014999,2]
[422574046,1779112240000,-500.0,0.00014999,2]
[422574044,1779112240000,-164.37893862,0.00014999,2]
[422574048,1779112240000,-500.0,0.00014999,2]
[422574050,1779112240000,-639.98009813,0.00014999,2]
[422574047,1779112240000,-500.0,0.00014999,2]
[422574053,1779112240000,-500.0,0.00014999,2]
[422574052,1779112240000,-500.0,0.00014999,2]
[422574054,1779112240000,-500.0,0.00014999,2]
[422574049,1779112240000,-500.0,0.00014999,2]
[422574051,1779112240000,-500.0,0.00014999,2]
[422574056,1779112240000,-500.0,0.00014999,2]
[422574066,1779112240000,-500.0,0.00014999,2]
[422574065,1779112240000,-500.0,0.00014999,2]
[422574064,1779112240000,-500.0,0.00014999,2]
[422574058,1779112240000,-500.0,0.00014999,2]
[422574055,1779112240000,-500.0,0.00014999,2]
[422574061,1779112240000,-500.0,0.00014999,2]
[422574057,1779112240000,-500.0,0.00014999,2]
[422574059,1779112240000,-500.0,0.00014999,2]
[422574063,1779112240000,-500.0,0.00014999,2]
[422574062,1779112240000,-500.0,0.00014999,2]
[422574031,1779112240000,-500.0,0.00014999,2]
[422574043,1779112240000,-500.0,0.00014999,2]
[422574035,1779112240000,-500.0,0.00014999,2]
[422574041,1779112240000,-500.0,0.00014999,2]
[422574020,1779112240000,-500.0,0.00014999,2]